lending/lending_fUSD_20240206
["ID","MTS","AMOUNT","RATE_DAILY","PERIOD"]
[313379195,1707244241261,-5814.43240559,0.00039784,6]
[313379196,1707244241270,-1795.5540507,0.00039784,6]
[313379197,1707244241279,-3000.0,0.00039784,6]
[313379198,1707244241287,-158.08544049,0.00039784,6]
[313379199,1707244241297,-1353.40200212,0.00039784,6]
[313379200,1707244241306,-176.71205872,0.00039784,6]
[313379201,1707244241315,-360.1365818,0.00039784,6]
[313379202,1707244241324,-2799.61267164,0.00039784,6]
[313379203,1707244241333,-971.99065507,0.00039784,6]
[313379204,1707244241343,-485.99532754,0.00039784,6]
[313379205,1707244241352,-2640.79434889,0.00039784,6]
[313379206,1707244241361,-150.0,0.00039942,2]
[313379207,1707244241370,-150.07,0.00039954,2]
[313379208,1707244241379,-150.0,0.00039999,2]
[313379209,1707244241388,-150.0,0.00039999,2]
[313379210,1707244241397,-100000.0,0.0004,20]
[313379211,1707244241406,-180.97162978,0.0004,2]
[313379212,1707244241415,-155.0,0.0004,2]
[313379213,1707244241425,-18412.22345442,0.0004,5]
[313379214,1707244241434,-2279.09360945,0.0004,4]
[313379215,1707244241443,-3762.50408095,0.0004,4]
[313379216,1707244241451,-3430.78962876,0.0004,7]
[313379217,1707244241461,-22291.99764734,0.0004,4]
[313379218,1707244241470,-22127.65154771,0.0004,4]
[313379219,1707244241478,-239.07037631,0.0004,2]
[313379220,1707244241487,-500.0,0.0004,2]
[313379221,1707244241496,-255.0,0.0004,12]
[313379222,1707244241505,-255.0,0.0004,12]
[313379223,1707244241514,-255.0,0.0004,12]
[313379224,1707244241523,-1000.0,0.0004,2]
[313379225,1707244241532,-255.0,0.0004,12]
[313379226,1707244241541,-255.0,0.0004,12]
[313379227,1707244241550,-255.0,0.0004,12]
[313379228,1707244241559,-300.0,0.0004,30]
[313379229,1707244241568,-255.0,0.0004,12]
[313379230,1707244241576,-1000.0,0.0004,2]
[313379231,1707244241586,-150.0,0.0004025,30]
[313379232,1707244241595,-199.104,0.0004025,30]
[313379233,1707244241604,-939.09840211,0.00040266,5]
[313379234,1707244241613,-558.5,0.00040285,2]
[313379235,1707244241623,-2593.34353579,0.0004032,4]
[313379236,1707244241632,-152.35886704,0.0004049,8]
[313379237,1707244241641,-150.0,0.00040519,2]
[313379238,1707244241650,-740.33,0.00040733,2]
[313379239,1707244241659,-8692.88,0.00040888,2]
[313379240,1707244241669,-100000.0,0.00041,21]
[313379241,1707244241678,-10000.0,0.00041,2]
[313379242,1707244241687,-364.47444157,0.00041,42]
[313379243,1707244241696,-750.0,0.00041,3]
[313379244,1707244241705,-3021.8259484,0.00041,30]
[313379245,1707244241714,-300.0,0.00041,30]
[313379246,1707244241723,-1023.61844267,0.00041095,2]
[313379247,1707244241732,-152.54,0.00041096,2]
[313379248,1707244241741,-4000.0,0.00041096,30]
[313379249,1707244241750,-962.0,0.00041096,30]
[313379250,1707244241760,-150.0,0.00041096,2]
[313379251,1707244241770,-13017.62,0.000411,7]
[313379252,1707244241779,-8676.36,0.000411,7]
[313379253,1707244241788,-9574.74,0.000411,7]
[313379254,1707244241797,-213.36,0.000411,7]
[313379255,1707244241807,-154.49,0.000412,4]
[313379256,1707244241816,-154.49,0.000412,4]
[313379257,1707244241826,-152.35886704,0.00041416,12]
[313379258,1707244241835,-277.36424085,0.00041522,4]
[313379259,1707244241845,-200.0,0.00041532,15]
[313379260,1707244241855,-150.07,0.00041552,2]
[313379261,1707244241864,-939.09840211,0.00041845,5]
[313379262,1707244241875,-15697.53868058,0.000419,4]
[313379263,1707244241885,-499.079,0.00041975,2]
[313379264,1707244241894,-8142.0,0.00041975,2]
[313379265,1707244241904,-100000.0,0.00042,22]
[313379266,1707244241915,-1776.54639395,0.00042,30]
[313379267,1707244241924,-500.0,0.00042,2]
[313379268,1707244241934,-300.0,0.00042,43]
[313379269,1707244241943,-300.0,0.00042,30]
[313379270,1707244241954,-75000.0,0.00042055,15]
[313379271,1707244241963,-740.33,0.00042205,2]
[313379272,1707244241973,-307.99301269,0.00042267,7]
[313379273,1707244241982,-1042.50333433,0.00042288,14]
[313379274,1707244241991,-1292.53,0.0004229,10]
[313379275,1707244242001,-2464.78,0.0004229,10]
[313379276,1707244242010,-2053.98,0.0004229,10]
[313379277,1707244242019,-1711.65,0.0004229,10]
[313379278,1707244242028,-2191.466805,0.000423,41]
[313379279,1707244242037,-152.35886704,0.00042342,15]
[313379280,1707244242049,-558.5,0.00042548,2]
[313379281,1707244242058,-1000.0,0.000427,2]
[313379282,1707244242067,-1500.0,0.000428,41]
[313379283,1707244242076,-1222.79277694,0.00042888,32]
[313379284,1707244242085,-2400.0,0.000429,15]
[313379285,1707244242096,-100000.0,0.00043,23]
[313379286,1707244242105,-1012.72166677,0.00043,30]
[313379287,1707244242114,-300.0,0.00043,44]
[313379288,1707244242123,-800.0,0.00043,3]
[313379289,1707244242131,-300.0,0.00043,30]
[313379290,1707244242141,-150.07,0.00043151,2]
[313379291,1707244242149,-13017.62,0.000432,7]
[313379292,1707244242158,-8676.36,0.000432,7]
[313379293,1707244242167,-9574.74,0.000432,7]
[313379294,1707244242176,-152.35886704,0.00043268,19]
[313379295,1707244242185,-150.0,0.00043286,4]
[313379296,1707244242194,-150.0,0.00043286,4]
[313379297,1707244242203,-217.6925532,0.00043287,31]
[313379298,1707244242211,-2344.0,0.00043287,120]
[313379299,1707244242220,-21509.19969265,0.00043287,32]
[313379300,1707244242230,-275.77051946,0.00043287,30]
[313379301,1707244242239,-46181.38953378,0.00043287,120]
[313379307,1707244242416,-672.63637961,0.00043287,120]
[313379309,1707244242427,-4314.02492,0.00043287,120]
[313379318,1707244242854,-36914.21266642,0.00043287,120]
[313379319,1707244242863,-555.98273462,0.00043287,120]
[313379320,1707244242876,-6217.72583263,0.00043287,7]
[313379321,1707244242960,-185.0,0.00038,2]
[313379322,1707244242969,-71.4100647,0.00040274,14]
[313379323,1707244242980,-113.5899353,0.00040274,14]
[313379324,1707244242989,-200.0,0.00042,2]
[313379325,1707244242998,-1540.36184895,0.00043287,7]
[313379326,1707244243014,-1156.2,0.00043287,7]
[313379327,1707244243026,-1467.29741007,0.00043287,7]
[313379328,1707244243279,-10537.87640835,0.00043287,7]
[313379329,1707244243288,-668.85464689,0.00043287,120]
[313379330,1707244243298,-3452.59317612,0.00043287,30]
[313379331,1707244243307,-12275.67125685,0.00043287,30]
[313379332,1707244243316,-343.56515,0.00043287,120]
[313379333,1707244243325,-217.99564528,0.00043287,120]
[313379334,1707244243334,-178063.06868912,0.00043287,10]
[313379335,1707244243344,-231.25642523,0.00043287,60]
[313379336,1707244243353,-229.5160761,0.00043287,120]
[313379337,1707244243362,-10044.60891756,0.00043287,30]
[313379338,1707244243374,-2182.10108767,0.00043287,30]
[313379339,1707244243385,-3061.84807864,0.00043287,30]
[313379340,1707244243394,-5169.51961609,0.00043287,7]
[313379341,1707244243403,-457.94444842,0.00043287,120]
[313379342,1707244243412,-36987.3536278,0.00043287,7]
[313379343,1707244243472,-13337.56317635,0.00022988,2]
[313379344,1707244243481,-6492.70377531,0.00038252,28]
[313379345,1707244243493,-676.7356332,0.00038252,28]
[313379369,1707244245652,-830.55059149,0.00038252,28]
[313379370,1707244245662,-150.0,0.00043287,30]
[313379371,1707244245671,-5012.6463722,0.00043287,7]
[313379372,1707244245681,-10907.53988953,0.00043287,120]
[313379373,1707244245690,-200.0,0.00043287,30]
[313379374,1707244245700,-200.0,0.00043287,30]
[313379375,1707244245709,-200.0,0.00043287,30]
[313379376,1707244245718,-200.0,0.00043287,30]
[313379377,1707244245728,-199.0,0.00043287,30]
[313379378,1707244245738,-496.65209327,0.00043287,30]
[313379379,1707244245747,-7522.58849027,0.00043287,4]
[313379380,1707244245757,-8717.18455965,0.00043287,7]
[313379382,1707244245766,-3745.72590372,0.00043287,7]
[313379384,1707244245777,-23663.25263182,0.00043287,2]
[313379386,1707244245786,-2149.75668452,0.00043287,3]
[313379388,1707244245799,-13555.04611976,0.00043287,7]
[313379390,1707244245808,-50859.13083908,0.00043287,7]
[313379392,1707244245818,-70390.40123832,0.00043287,7]
[313379398,1707244245854,-4879.00007376,0.00043287,7]
[313379423,1707244272581,57924.9518,0.00022444,2]
[313379424,1707244275641,18244.0199,0.00022444,2]
[313379425,1707244347637,500.0,0.00022444,2]
[313379426,1707244350400,221.31148748,0.00022444,2]
[313379427,1707244527797,868.72680183,0.00022444,2]
[313379428,1707244557788,868.72680183,0.00022444,2]
[313379429,1707244573775,868.72680183,0.00022444,2]
[313379430,1707244591777,868.72680183,0.00022444,2]
[313379431,1707244607794,868.72680183,0.00022444,2]
[313379432,1707244629786,868.72680183,0.00022444,2]
[313379433,1707244647785,868.72680183,0.00022444,2]
[313379434,1707244669795,868.72680183,0.00022444,2]
[313379435,1707244689796,868.72680183,0.00022444,2]
[313379436,1707244707805,868.72680183,0.00022444,2]
[313379437,1707244727801,868.72680183,0.00022444,2]
[313379438,1707244749797,868.72680183,0.00022444,2]
[313379439,1707244767801,981.66297003,0.00022444,2]
[313379440,1707244959084,876.01572915,0.00020424,2]
[313379441,1707244977087,876.01572915,0.00020424,2]
[313379442,1707244995093,876.01572915,0.00020424,2]
[313379443,1707245017089,876.01572915,0.00018586,2]
[313379444,1707245037208,876.01572915,0.00018586,2]
[313379445,1707245053093,876.01572915,0.00016913,2]
[313379446,1707245073110,876.01572915,0.00016913,2]
[313379447,1707245091108,876.01572915,0.00016913,2]
[313379448,1707245117103,876.01572915,0.00015391,2]
[313379449,1707245139114,205.88646076,0.00015391,2]
[313379450,1707245345112,-798.80556008,0.00024866,2]
[313379451,1707245345132,-229.23938363,0.00024866,2]
[313379452,1707245345151,-355.87983929,0.00024867,2]
[313379453,1707245345171,-201.89660623,0.00024867,2]
[313379454,1707245345192,-24507.65461077,0.00024888,2]
[313379455,1707245346096,-555.43853989,0.00024888,2]
[313379456,1707245349180,-985.34960248,0.00024888,2]
[313379457,1707245354110,-11486.46172023,0.00024888,2]
[313379458,1707245355188,-72743.34609484,0.00024888,2]
[313379459,1707245360097,-229.23938363,0.00024887,2]
[313379460,1707245360118,-35403.73704978,0.00024888,2]
[313379461,1707245364094,-355.46986568,0.00024887,2]
[313379462,1707245364113,-532.53704005,0.00024887,2]
[313379463,1707245364134,-91051.39809427,0.00024888,2]
[313379464,1707245371871,403.28512965,0.00014929,2]
[313379465,1707245378122,5206.34277486,0.00015391,2]
[313379475,1707245431574,-201.89660623,0.00024139,2]
[313379476,1707245431583,-2483.18794287,0.0002414,2]
[313379477,1707245431592,-997.95531102,0.00024764,2]
[313379478,1707245431601,-152.64318861,0.00024764,2]
[313379479,1707245431610,-162.27716286,0.00024786,2]
[313379480,1707245431620,-443.78086671,0.00024886,2]
[313379481,1707245431629,-228.95511251,0.00024886,2]
[313379482,1707245431638,-5204.70011666,0.00024888,2]
[313379483,1707245431647,-2604.16957331,0.00024888,2]
[313379484,1707245431657,-167810.46896965,0.00024888,2]
[313379485,1707245431669,-4734.87157085,0.00024888,2]
[313379486,1707245431683,-517.62055247,0.00024888,2]
[313379487,1707245431708,-5402.71354348,0.00024888,2]
[313379488,1707245431720,-1839.24926668,0.00024888,2]
[313379489,1707245431733,-471.11615576,0.00024888,2]
[313379490,1707245431750,-5335.54724617,0.00024786,2]
[313379491,1707245431762,-967.369,0.00024786,2]
[313379492,1707245431774,-5653.17426621,0.00024786,2]
[313379493,1707245431786,-255.0,0.00024786,2]
[313379494,1707245431808,-5970.66273488,0.00024786,2]
[313379495,1707245431829,-1077.625,0.00024786,2]
[313379496,1707245431841,-636.92519419,0.00024786,2]
[313379501,1707245431899,-553.74088929,0.00024786,2]
[313379503,1707245431912,-5296.37178909,0.00024786,2]
[313379506,1707245431924,-2469.58388017,0.00024786,2]
[313379508,1707245431934,-134.87837712,0.00024888,2]
[313379511,1707245431946,-24609.59999881,0.00024888,2]
[313379515,1707245431958,-339.95296193,0.00024888,2]
[313379518,1707245431971,-499.51621629,0.00024888,2]
[313379522,1707245431983,-254.82664005,0.00024888,2]
[313379549,1707245437575,-699.0577829,0.00024888,2]
[313379550,1707245437586,-1125.725006,0.00024888,2]
[313379551,1707245437598,-25837.65632224,0.00024888,2]
[313379552,1707245437609,-1195.43925594,0.00024888,2]
[313379553,1707245437633,-435.22057994,0.00024888,2]
[313379554,1707245437743,-34362.28734475,0.00024888,2]
[313379555,1707245437808,-756.49439992,0.00024888,2]
[313379556,1707245437818,-150.0,0.00024889,2]
[313379557,1707245437827,-150.0,0.00024889,2]
[313379558,1707245437836,-234.81641343,0.0002489,2]
[313379559,1707245437846,-350.0,0.00025,3]
[313379560,1707245437860,-608.4508353,0.00026498,3]
[313379561,1707245437869,-481.2212,0.00026598,2]
[313379562,1707245437878,-7261.25875135,0.00026696,2]
[313379563,1707245437890,-1106.13673529,0.00026696,2]
[313379564,1707245437905,-355.66430477,0.00026696,2]
[313379565,1707245437923,-821.90291404,0.00026696,2]
[313379566,1707245437935,-271.81469396,0.00026696,2]
[313379616,1707245440197,-0.09709617,0.00026696,2]
[313379617,1707245440226,-5195.84305317,0.00026696,2]
[313379618,1707245440239,-261.56086563,0.00026696,2]
[313379619,1707245440252,-513.84877829,0.00026696,2]
[313379620,1707245440263,-300.0,0.00026696,2]
[313379621,1707245440282,-735.49495099,0.00026696,2]
[313379622,1707245440292,-2314.94205742,0.00026696,2]
[313379623,1707245440301,-499.99,0.00026698,2]
[313379624,1707245440310,-2800.0,0.000267,2]
[313379625,1707245440321,-1069.71245268,0.000267,2]
[313379626,1707245440334,-439.78517788,0.000267,2]
[313379627,1707245440345,-561.6645378,0.000267,2]
[313379628,1707245440357,-7641.57211398,0.000267,2]
[313379629,1707245441038,-7887.26571766,0.000267,2]
[313379630,1707245441048,-400.0,0.00027,3]
[313379631,1707245441057,-500.0,0.00027,7]
[313379632,1707245441067,-200.0,0.00028,2]
[313379633,1707245441076,-450.0,0.00029,3]
[313379634,1707245441086,-318.78,0.00029421,2]
[313379635,1707245441095,-608.45083527,0.00029798,4]
[313379636,1707245441105,-2000.0,0.00029909,2]
[313379637,1707245441114,-250.0,0.00029909,2]
[313379638,1707245441125,-250.0,0.00029933,2]
[313379639,1707245441134,-200.0,0.00029933,2]
[313379640,1707245441143,-9678.59852311,0.0003,2]
[313379641,1707245441152,-155.0,0.0003,2]
[313379642,1707245441162,-585.09173402,0.0003,2]
[313379643,1707245441171,-23900.0,0.00030206,2]
[313379644,1707245441180,-500.0,0.00031,3]
[313379645,1707245441189,-183.13,0.00031125,2]
[313379646,1707245441199,-150.0,0.00031338,2]
[313379647,1707245441208,-168.43,0.0003144,2]
[313379648,1707245441217,-318.78,0.00031685,2]
[313379649,1707245441226,-550.0,0.00033,3]
[313379650,1707245441235,-608.45083527,0.00033099,6]
[313379651,1707245441249,-181.69,0.00033151,120]
[313379652,1707245441258,-318.78,0.00033948,2]
[313379653,1707245441267,-162.27716285,0.00034628,2]
[313379654,1707245441276,-600.0,0.00035,3]
[313379655,1707245441286,-155.0,0.00035,2]
[313379656,1707245441295,-155.0,0.00035,2]
[313379657,1707245441304,-318.78,0.00036212,2]
[313379658,1707245441313,-821.19005043,0.00036301,30]
[313379659,1707245441324,-608.45083527,0.00036399,7]
[313379660,1707245441334,-152.47,0.00036423,2]
[313379661,1707245441343,-150.0,0.00036429,2]
[313379662,1707245441352,-359.51295822,0.00036794,4]
[313379663,1707245441361,-650.0,0.00037,3]
[313379664,1707245441370,-152.47,0.00037056,2]
[313379665,1707245441379,-177.2,0.00037177,2]
[313379666,1707245441388,-1000.0,0.00037251,2]
[313379667,1707245441397,-1000.0,0.000373,2]
[313379668,1707245441407,-596.32,0.0003739,2]
[313379669,1707245441416,-152.47,0.00037688,2]
[313379670,1707245441552,-152.47,0.00038321,2]
[313379671,1707245441568,-150.07,0.00038356,2]
[313379672,1707245441578,-250.0,0.000384,2]
[313379673,1707245441586,-318.78,0.00038476,2]
[313379674,1707245441595,-468.3347633,0.0003888,2]
[313379675,1707245441604,-468.33476329,0.0003888,2]
[313379676,1707245441613,-468.33476329,0.0003888,2]
[313379677,1707245441622,-468.33476329,0.0003888,2]
[313379678,1707245441631,-468.33476329,0.0003888,2]
[313379679,1707245441640,-283.09329368,0.0003898,2]
[313379680,1707245441650,-700.0,0.00039,3]
[313379681,1707245441660,-596.32,0.00039034,2]
[313379682,1707245441670,-468.33476329,0.00039158,2]
[313379683,1707245441679,-296.13,0.0003926,2]
[313379684,1707245441688,-608.45083527,0.00039699,9]
[313379685,1707245441697,-167.8,0.00039738,2]
[313379686,1707245441707,-915.95,0.00039774,10]
[313379687,1707245441716,-439.91468132,0.00039778,4]
[313379688,1707245441762,-202.07111129,0.00039778,4]
[313379689,1707245441771,-375.6832297,0.00039778,5]
[313379696,1707245442654,-1405.81876783,0.00039778,5]
[313379697,1707245442666,-43.38800247,0.00039778,5]
[313379698,1707245442676,-6273.87285421,0.00039784,6]
[313379699,1707245442685,-1252.53751922,0.00039784,6]
[313379700,1707245442694,-626.26875961,0.00039784,6]
[313379701,1707245442703,-573.36001359,0.00039784,6]
[313379702,1707245442713,-286.6800068,0.00039784,6]
[313379703,1707245442722,-187.69890162,0.00039784,5]
[313379704,1707245442731,-151.3401091,0.00039784,6]
[313379705,1707245442741,-1259.82570224,0.00039784,6]
[313379706,1707245442760,-1273.0715513,0.00039784,6]
[313379707,1707245442776,-52.39822352,0.00039784,6]
[313379708,1707245442786,-354.81971173,0.00039784,6]
[313379709,1707245442796,-223.58018713,0.000399,2]
[313379710,1707245442810,-3606.83294573,0.000399,2]
[313379711,1707245442881,-174.82116714,0.000399,2]
[313379712,1707245442891,-295.82185617,0.000399,2]
[313379713,1707245442903,-2925.25374383,0.000399,2]
[313379714,1707245442913,-1000.0,0.0004,2]
[313379715,1707245442922,-155.0,0.0004,2]
[313379716,1707245442932,-255.0,0.0004,12]
[313379718,1707245442942,-255.0,0.0004,12]
[313379719,1707245442951,-270.0,0.0004,12]
[313379721,1707245442961,-300.0,0.0004,30]
[313379723,1707245442971,-209.37882577,0.00040298,4]
[313379725,1707245442980,-150.0,0.00040418,2]
[313379726,1707245442990,-596.32,0.00040677,2]
[313379728,1707245443000,-4390.33543042,0.00040677,30]
[313379730,1707245443012,-1178.83976775,0.00040677,30]
[313379745,1707245445659,-265.39585171,0.00038879,4]
[313379746,1707245445669,-2430.81480183,0.00040677,30]
[313379747,1707245445679,-4522.58,0.00040728,2]
[313379748,1707245445688,-296.13,0.00040733,2]
[313379749,1707245445697,-318.78,0.0004074,2]
[313379750,1707245445706,-150.07,0.00040753,2]
[313379751,1707245445715,-1000.0,0.000408,4]
[313379752,1707245445724,-180.0,0.00040822,2]
[313379753,1707245445733,-458.3107239,0.00040999,4]
[313379754,1707245445742,-750.0,0.00041,3]
[313379755,1707245445752,-300.0,0.00041,30]
[313379756,1707245445762,-4000.0,0.00041096,30]
[313379757,1707245445771,-962.0,0.00041096,30]
[313379758,1707245445780,-150.0,0.00041191,2]
[313379759,1707245445789,-1019.23354154,0.00041231,30]
[313379760,1707245445798,-8142.0,0.00041303,2]
[313379761,1707245445807,-205.0,0.00041683,10]
[313379762,1707245445817,-200.0,0.00041885,9]
[313379763,1707245445826,-15697.53868058,0.000419,4]
[313379764,1707245445835,-1000.0,0.00041907,2]
[313379765,1707245445844,-150.0,0.00041965,2]
[313379766,1707245445853,-300.0,0.00042,30]
[313379767,1707245445863,-200.0,0.00042,2]
[313379768,1707245445872,-468.33476329,0.00042032,4]
[313379769,1707245445883,-150.0,0.00042094,30]
[313379770,1707245445893,-296.13,0.00042205,2]
[313379771,1707245445902,-973.00311206,0.00042221,14]
[313379772,1707245445911,-360.0,0.00042252,12]
[313379773,1707245445920,-360.0,0.00042252,12]
[313379774,1707245445930,-596.32,0.00042321,2]
[313379775,1707245445939,-1000.0,0.000427,2]
[313379776,1707245445948,-150.0,0.00042738,2]
[313379777,1707245445958,-22217.0,0.00042789,30]
[313379778,1707245445967,-400.0,0.000428,15]
[313379779,1707245445977,-205.0,0.00042828,10]
[313379780,1707245445990,-3000.0,0.0004285,15]
[313379782,1707245445999,-176.13214682,0.00042851,4]
[313379784,1707245446009,-800.0,0.000429,15]
[313379785,1707245446018,-505.66837045,0.000429,5]
[313379787,1707245446028,-608.45083527,0.00042999,11]
[313379789,1707245446038,-800.0,0.00043,3]
[313379790,1707245446047,-758.75493121,0.00043,2]
[313379792,1707245446057,-1215.26600012,0.00043,30]
[313379794,1707245446066,-190.0,0.00043,90]
[313379797,1707245446075,-300.0,0.00043,30]
[313379799,1707245446084,-4000.0,0.00043,2]
[313379802,1707245446093,-318.78,0.00043004,2]
[313379804,1707245446102,-14478.8139,0.00043086,2]
[313379806,1707245446111,-308.9496,0.00043086,2]
[313379808,1707245446120,-152.35886704,0.0004312,18]
[313379810,1707245446131,-150.07,0.00043151,2]
[313379812,1707245446141,-3000.0,0.0004316,17]
[313379814,1707245446150,-188.46955123,0.00043176,2]
[313379816,1707245446160,-155.0,0.00043184,4]
[313379818,1707245446169,-155.0,0.00043184,4]
[313379820,1707245446180,-155.0,0.00043184,2]
[313379822,1707245446189,-191.56467231,0.00043184,4]
[313379824,1707245446199,-372.52079518,0.00043184,4]
[313379826,1707245446209,-155.0,0.00043184,4]
[313379828,1707245446219,-699.44102538,0.00043184,30]
[313379830,1707245446228,-155.0,0.00043184,4]
[313379832,1707245446238,-155.0,0.00043184,4]
[313379834,1707245446249,-155.0,0.00043184,4]
[313379836,1707245446259,-286.37979724,0.00043184,4]
[313379838,1707245446268,-921.14475538,0.00043184,4]
[313379840,1707245446279,-155.0,0.00043184,2]
[313379843,1707245446289,-172.50573424,0.00043184,4]
[313379844,1707245446298,-155.0,0.00043184,4]
[313379846,1707245446308,-155.0,0.00043184,4]
[313379848,1707245446317,-388.36932466,0.00043184,4]
[313379850,1707245446326,-631.10009728,0.00043184,4]
[313379853,1707245446336,-338.86703874,0.00043184,4]
[313379854,1707245446345,-155.18134939,0.00043185,4]
[313379857,1707245446355,-32023.5616,0.00043186,2]
[313379859,1707245446364,-4168.3216,0.00043186,2]
[313379861,1707245446374,-39386.0198,0.00043186,2]
[313379863,1707245446386,-165.91201126,0.00043187,17]
[313379865,1707245446395,-15869.79688285,0.00043187,17]
[313379867,1707245446405,-150.0,0.00043192,2]
[313379868,1707245446415,-34957.87528529,0.0004321,11]
[313379871,1707245446432,-440.80572,0.0004321,11]
[313379874,1707245446445,-408.0,0.0004321,11]
[313379935,1707245447114,-34662.52008305,0.0004321,11]
[313379937,1707245447126,-6496.02062856,0.0004321,11]
[313379939,1707245447138,-577.2793438,0.0004321,11]
[313379942,1707245447150,-10179.62234861,0.0004321,11]
[313379944,1707245447162,-250.46,0.0004321,11]
[313380061,1707245458408,2604.16957331,0.00023,2]
[313380062,1707245469165,49395.83042669,0.00023,2]
[313380063,1707245480270,792.62965198,9e-05,2]
[313380064,1707245488986,-1935.02242283,0.00022998,2]
[313380065,1707245489007,-413.07279928,0.00022999,2]
[313380066,1707245489182,-395.97389933,0.00022999,2]
[313380067,1707245489212,-495.15105302,0.00022999,2]
[313380068,1707245489237,-336.36374591,0.00022999,2]
[313380069,1707245489258,-156.43646517,0.00022999,2]
[313380070,1707245489281,-200.4169865,0.00022999,2]
[313380071,1707245489305,-196067.56262796,0.00023,2]
[313380072,1707245494192,320.15005611,0.0002,2]
[313380073,1707245542126,3138.70124231,0.00021847,2]
[313380074,1707245563813,535.25490599,0.0002,2]
[313380075,1707245576110,555.43853989,0.00021847,2]
[313380076,1707245579767,269.47621624,0.0002,2]
[313380077,1707245634374,353.38,0.00022,2]
[313380078,1707245639610,617.92309023,0.00022,2]
[313380079,1707245647020,1000.0,0.0002,2]
[313380094,1707245892154,159.95,0.00022283,2]
[313380095,1707245922087,200.0,0.00022158,2]
[313380096,1707245962158,309.45,0.00021961,2]
[313380097,1707245971563,187.33,0.0002202,2]
[313380100,1707245996589,224.82,0.00022086,2]
[313380102,1707246010046,194.96,0.0002202,2]
[313380103,1707246010426,500.0,0.00021961,2]
[313380105,1707246013594,271.38,0.00020043,2]
[313380106,1707246013819,271.38,0.00022307,2]
[313380108,1707246055059,150.0,0.00022084,2]
[313380109,1707246061768,250.0,0.00022155,2]
[313380112,1707246090634,2282.71,0.00022018,2]
[313380113,1707246095922,500.0,0.00022307,2]
[313380114,1707246097831,2000.0,0.0002209,2]
[313380120,1707246155938,200.0,0.00022018,2]
[313380122,1707246202022,600.0,0.0002209,2]
[313380123,1707246217900,393.15011915,0.000225,2]
[313380124,1707246220647,250.0,0.00022342,2]
[313380128,1707246242908,169.58,0.00022318,2]
[313380130,1707246265169,779.12,0.00022318,2]
[313380136,1707246369781,200.0,0.00022045,2]
[313380137,1707246412352,261.65996166,0.00022318,2]
[313380138,1707246422711,8112.77428237,0.00022318,2]
[313380139,1707246435855,188.89,0.00022104,2]
[313380140,1707246446094,-231.20983156,0.00022505,2]
[313380141,1707246446114,-459.01513667,0.00022506,2]
[313380142,1707246452086,500.0,0.000223,8]
[313380143,1707246454205,1000.0,0.000224,8]
[313380144,1707246456293,1500.0,0.000225,8]
[313380145,1707246469824,275.97,0.00021875,2]
[313380147,1707246489841,534.13363385,0.00022503,2]
[313380148,1707246489964,3041.67994149,0.00022503,2]
[313380149,1707246495763,4263.07443407,0.00022503,2]
[313380150,1707246497663,150.0,0.00022,2]
[313380152,1707246501059,-3342.42159699,0.00022504,2]
[313380153,1707246501079,-363.11477299,0.00022504,2]
[313380154,1707246501103,-699.76836393,0.00022505,2]
[313380155,1707246501122,-3794.69526609,0.00022506,2]
[313380158,1707246514086,280.93,0.00020092,2]
[313380159,1707246514313,280.93,0.00022356,2]
[313380162,1707246556102,-231.20983156,0.00022505,2]
[313380163,1707246556122,-160.5,0.00022513,2]
[313380164,1707246556143,-161.94724552,0.00022577,2]
[313380165,1707246556163,-794.29678368,0.000226,2]